lending/lending_fUSD_20260101
["ID","MTS","AMOUNT","RATE_DAILY","PERIOD"]
[400253700,1767225661603,500.0,0.0004317,120]
[400253702,1767225690949,1005.0,0.00043165,30]
[400253709,1767225785974,17460.48411119,0.00043165,120]
[400253717,1767225961449,500.0,0.00043165,120]
[400253719,1767225990209,23206.0,0.00043167,120]
[400253787,1767226232264,-628.25452076,0.0001085,2]
[400253788,1767226232274,-33.16953507,0.0001085,2]
[400253789,1767226232318,-174.23430373,0.0001085,2]
[400253790,1767226232328,-172.61372799,0.00011935,2]
[400253791,1767226232339,-127.38627201,0.00011935,2]
[400253792,1767226232350,-216.78544252,0.0001215,2]
[400253793,1767226232361,-90.90578832,0.0001215,2]
[400253794,1767226232376,-373.46870138,0.00013699,2]
[400253795,1767226232389,-626.53129862,0.00013699,2]
[400253796,1767226232398,-180.94,0.00014306,2]
[400253797,1767226232408,-166.66,0.00014421,2]
[400253798,1767226232417,-166.66,0.00014724,2]
[400253799,1767226232426,-98.14154884,0.00015028,2]
[400253800,1767226232438,-68.51845116,0.00015028,2]
[400253801,1767226232447,-151.88196593,0.00015262,2]
[400253802,1767226232456,-450.0,0.00015287,2]
[400253803,1767226232466,-300.0,0.00015287,2]
[400253804,1767226232476,-300.0,0.00015287,2]
[400253805,1767226232486,-150.0,0.00015288,2]
[400253806,1767226232496,-150.0,0.00015288,2]
[400253807,1767226232506,-150.0,0.00015288,2]
[400253808,1767226232515,-150.0,0.00015288,2]
[400253810,1767226232525,-171.10828189,0.00015288,2]
[400253812,1767226232535,-150.0,0.00015288,2]
[400253813,1767226232544,-176.41435157,0.00015288,2]
[400253814,1767226232554,-199.77046782,0.00015288,2]
[400253816,1767226232563,-173.20648159,0.00015288,2]
[400253819,1767226232576,-97.52909781,0.00015288,2]
[400253820,1767226232586,-284.46660851,0.00015288,2]
[400253822,1767226232596,-98.71429368,0.00015288,2]
[400253824,1767226232608,-51.28570632,0.00015288,2]
[400253826,1767226232618,-166.66,0.00015331,2]
[400253828,1767226232628,-150.0,0.000155,2]
[400253831,1767226232638,-500.0,0.00015507,2]
[400253833,1767226232647,-393.75176407,0.00015507,2]
[400253835,1767226232656,-29621.7,0.00015508,2]
[400253837,1767226232666,-150.0,0.0001556,2]
[400253839,1767226232675,-999.0,0.0001556,3]
[400253840,1767226232684,-1849.61,0.00015614,2]
[400253841,1767226232694,-150.0,0.00015627,2]
[400253842,1767226232704,-150.0,0.00015627,2]
[400253843,1767226232714,-166.66,0.00015635,2]
[400253844,1767226232724,-200.0,0.00015711,2]
[400253845,1767226232739,-150.0,0.00015712,2]
[400253846,1767226232749,-150.0,0.00015712,2]
[400253847,1767226232759,-150.0,0.00015712,2]
[400253848,1767226232769,-259.29,0.0001575,2]
[400253849,1767226232779,-1600.0,0.00015766,2]
[400253850,1767226232789,-150.0,0.00015854,2]
[400253851,1767226232798,-150.0,0.00015925,2]
[400253852,1767226232808,-166.66,0.00015938,2]
[400253853,1767226232819,-150.0,0.00015967,2]
[400253854,1767226232829,-150.0,0.00015967,2]
[400253855,1767226232839,-150.08,0.00016,2]
[400253856,1767226232849,-150.0,0.00016108,2]
[400253857,1767226232859,-150.0,0.00016137,2]
[400253858,1767226232870,-150.0,0.00016137,2]
[400253859,1767226232879,-150.0,0.00016137,2]
[400253860,1767226232890,-166.66,0.00016255,2]
[400253861,1767226232906,-150.0,0.00016307,2]
[400253862,1767226232917,-150.0,0.00016307,2]
[400253863,1767226232927,-150.0,0.00016349,2]
[400253864,1767226232937,-150.0,0.0001642,2]
[400253865,1767226232947,-603.2,0.00016438,2]
[400253866,1767226232957,-10032.88,0.00016438,2]
[400253867,1767226232966,-240.77,0.00016538,2]
[400253868,1767226232977,-150.0,0.00016562,2]
[400253869,1767226232989,-150.0,0.00016562,2]
[400253870,1767226232999,-150.0,0.00016562,2]
[400253871,1767226233009,-2500.0,0.00016582,2]
[400253872,1767226233019,-14092.2817,0.00016582,2]
[400253873,1767226233028,-1000.0,0.00016582,2]
[400253874,1767226233037,-776.65548042,0.00016599,2]
[400253875,1767226233048,-1181.72660284,0.00016599,2]
[400253876,1767226233058,-776.65548035,0.00016632,2]
[400253877,1767226233068,-1181.72660277,0.00016632,2]
[400253878,1767226233078,-150.0,0.00016647,2]
[400253879,1767226233088,-150.0,0.00016647,2]
[400253880,1767226233101,-151.0,0.00016659,2]
[400253881,1767226233111,-151.0,0.00016659,2]
[400253882,1767226233121,-2417.10208061,0.0001666,2]
[400253883,1767226233130,-151.0,0.00016661,2]
[400253884,1767226233140,-151.0,0.00016661,2]
[400253885,1767226233150,-151.0,0.00016661,2]
[400253886,1767226233160,-151.0,0.00016661,2]
[400253887,1767226233169,-776.65548035,0.00016666,2]
[400253888,1767226233179,-1181.72660277,0.00016666,2]
[400253889,1767226233189,-151.0,0.00016679,2]
[400253890,1767226233201,-776.65548035,0.00016699,2]
[400253891,1767226233211,-1181.72660277,0.00016699,2]
[400253892,1767226233221,-603.2,0.00016712,2]
[400253893,1767226233231,-165.38,0.00016712,2]
[400253894,1767226233241,-420.0,0.00016726,2]
[400253895,1767226233251,-776.65548035,0.00016733,2]
[400253896,1767226233261,-1181.72660277,0.00016733,2]
[400253897,1767226233271,-1707.612,0.00016739,2]
[400253898,1767226233280,-502.86586576,0.00016765,2]
[400253899,1767226233290,-218.67685232,0.00016765,2]
[400253900,1767226233300,-776.65548035,0.00016766,2]
[400253901,1767226233314,-1181.72660277,0.00016766,2]
[400253902,1767226233325,-150.0,0.00016774,2]
[400253903,1767226233335,-151.0,0.00016777,2]
[400253904,1767226233345,-151.0,0.00016777,2]
[400253905,1767226233355,-165.4969409,0.00016777,2]
[400253906,1767226233367,-1709.80613655,0.00016778,2]
[400253907,1767226233377,-300.0,0.00016779,2]
[400253908,1767226233386,-5142.58511763,0.0001678,2]
[400253909,1767226233573,-7765.68675547,0.0001678,2]
[400253910,1767226233583,-10553.5369872,0.0001678,2]
[400253911,1767226233593,-11243.5236141,0.0001678,2]
[400253912,1767226233603,-30147.1643116,0.0001678,2]
[400253913,1767226233617,-77852.1492436,0.0001678,2]
[400253914,1767226233627,-3068.5513034,0.0001678,2]
[400253915,1767226233637,-32199.41881534,0.0001678,2]
[400253916,1767226233649,-884.60538657,0.0001678,2]
[400253917,1767226233661,-1288.12252,0.0001678,2]
[400253918,1767226233673,-556.64674786,0.0001678,2]
[400253919,1767226233685,-6285.10522264,0.0001678,2]
[400253920,1767226233697,-1060.77904205,0.0001678,2]
[400253931,1767226238428,-151.0,0.00016659,2]
[400253932,1767226238439,-151.0,0.00016659,2]
[400253933,1767226238449,-96.96585399,0.0001678,2]
[400253934,1767226238461,-11189.15710098,0.0001678,2]
[400253935,1767226238472,-3347.09028362,0.0001678,2]
[400253936,1767226238484,-1663.68431195,0.0001678,2]
[400253937,1767226238495,-620.0000001,0.0001678,2]
[400253938,1767226238507,-27204.76122408,0.0001678,2]
[400253939,1767226238518,-510.0107198,0.0001678,2]
[400253940,1767226238529,-1667.95075,0.0001678,2]
[400253941,1767226238540,-328.88666808,0.0001678,2]
[400253951,1767226240434,-919.71294345,0.00016582,2]
[400253952,1767226240499,-751.66775334,0.00016582,2]
[400253953,1767226240512,-12532.55660321,0.00016582,2]
[400253954,1767226240521,-2193.827743,0.0001678,2]
[400253955,1767226240532,-1241.61231828,0.0001678,2]
[400253956,1767226240544,-586.6832045,0.0001678,2]
[400253957,1767226240564,-254.35801595,0.0001678,2]
[400253958,1767226240575,-1218.70305801,0.0001678,2]
[400253959,1767226240586,-569.37474915,0.0001678,2]
[400253960,1767226240881,-1901.96,0.0001678,2]
[400253963,1767226244436,-316.16713008,0.0001678,2]
[400253964,1767226244448,-1343.6405701,0.0001678,2]
[400253965,1767226244460,-661.1367839,0.0001678,2]
[400253966,1767226244471,-352.72799642,0.0001678,2]
[400253967,1767226244482,-785.0,0.0001678,2]
[400253968,1767226244493,-7950.65881695,0.0001678,2]
[400253969,1767226244505,-2020.2,0.0001678,2]
[400253970,1767226244517,-4046.9850555,0.0001678,2]
[400253971,1767226244528,-876.59989435,0.0001678,2]
[400253972,1767226244575,150.76,8.041e-05,2]
[400253973,1767226244721,150.76,8.711e-05,2]
[400253974,1767226244914,150.76,9.381e-05,2]
[400253975,1767226245139,150.76,0.00010051,2]
[400253979,1767226246368,-150.76,0.00010721,2]
[400253980,1767226246380,-150.76,0.00011391,2]
[400253981,1767226246391,-150.76,0.00012062,2]
[400253983,1767226246401,-150.76,0.00012732,2]
[400253984,1767226246411,-56323.96675835,0.0001678,2]
[400253985,1767226246421,-151.88196593,0.00016788,2]
[400253986,1767226246431,-166.66,0.00016791,2]
[400253987,1767226246442,-776.65548035,0.000168,2]
[400253989,1767226246452,-1181.72660277,0.000168,2]
[400253990,1767226246461,-776.65548035,0.00016833,2]
[400253991,1767226246471,-1181.72660277,0.00016833,2]
[400253992,1767226246480,-2617.0,0.00016865,2]
[400253993,1767226246490,-776.65548035,0.00016867,2]
[400253994,1767226246500,-1181.72660277,0.00016867,2]
[400253995,1767226246510,-24268.6613173,0.00016882,3]
[400253996,1767226246522,-731.3386827,0.00016882,3]
[400253997,1767226246531,-254.66532996,0.00016891,3]
[400253998,1767226246543,-311.95472696,0.00016891,3]
[400253999,1767226246569,-150.76,0.00013402,2]
[400254000,1767226246578,-337.10586072,0.00016891,3]
[400254005,1767226261771,500.0,0.00043167,120]
[400254008,1767226493782,1813.85506838,0.00043167,120]
[400254009,1767226561631,500.0,0.00043167,120]
[400254010,1767226861585,500.0,0.00043165,120]
[400254011,1767227075934,155.0,0.000301,120]
[400254012,1767227161546,500.0,0.00043165,120]
[400254158,1767227431468,-195.0,0.00013999,2]
[400254161,1767227431478,-195.0,0.00014023,2]
[400254165,1767227431488,-195.0,0.00014052,2]
[400254168,1767227431498,-150.76,0.00014072,2]
[400254171,1767227431508,-175.93251022,0.00014075,2]
[400254174,1767227431521,-424.06748978,0.00014075,2]
[400254177,1767227431531,-422.3008224,0.00014552,2]
[400254179,1767227431540,-150.76,0.00014742,2]
[400254182,1767227431550,-1082.29594927,0.00014852,2]
[400254185,1767227431559,-342.65573197,0.00014998,2]
[400254189,1767227431570,-1509.76426803,0.00014998,2]
[400254192,1767227431579,-400.58713999,0.00015,2]
[400254195,1767227431589,-1500.0,0.00015041,2]
[400254198,1767227431599,-151.88196593,0.00015262,2]
[400254201,1767227431609,-300.0,0.00015287,2]
[400254202,1767227431619,-150.0,0.00015288,2]
[400254203,1767227431629,-150.0,0.00015288,2]
[400254204,1767227431639,-150.0,0.00015288,2]
[400254205,1767227431649,-150.0,0.00015288,2]
[400254206,1767227431658,-150.00000001,0.00015288,2]
[400254207,1767227431667,-150.0,0.00015288,2]
[400254208,1767227431677,-150.0,0.00015288,2]
[400254209,1767227431687,-13649.50104331,0.00015308,2]
[400254210,1767227431698,-630.31,0.00015308,2]
[400254211,1767227431710,-302.04407022,0.00015308,2]
[400254212,1767227431726,-5881.96855336,0.00015308,2]
[400254230,1767227437608,-551.09530478,0.00015308,2]
[400254231,1767227437619,-15699.29920524,0.00015308,2]
[400254232,1767227437631,-896.94,0.00015308,2]
[400254233,1767227437705,-35537.26369829,0.00015308,2]
[400254234,1767227437716,-22877.13477734,0.00015308,2]
[400254261,1767227439590,-4640.0568314,0.00015308,2]
[400254262,1767227439602,-631.654199,0.00015308,2]
[400254263,1767227439614,-439.155,0.00015308,2]
[400254264,1767227439636,-331.30587105,0.00015308,2]
[400254270,1767227444628,-999.0,0.00015308,2]
[400254271,1767227444923,-2959.95064316,0.00015308,2]
[400254272,1767227445819,-538.9845404,0.00015308,2]
[400254278,1767227461737,500.0,0.00043165,120]
[400254279,1767227761328,500.0,0.00043165,120]
[400254280,1767227885419,500.0,0.00043165,120]
[400254281,1767227909342,406.0,0.00043165,30]
[400254283,1767228060707,500.0,0.00043165,120]
[400254290,1767228361460,500.0,0.00043165,120]
[400254315,1767228631684,-574.9815518,0.00014399,2]
[400254316,1767228631697,-349.8184482,0.00014399,2]
[400254317,1767228631707,-203.92603745,0.00014416,2]
[400254318,1767228631717,-42.58432068,0.00014437,2]
[400254319,1767228631729,-152.41567932,0.00014437,2]
[400254320,1767228631738,-195.0,0.00014479,2]
[400254321,1767228631747,-150.0,0.00014497,2]
[400254322,1767228631757,-600.0,0.00014516,2]
[400254323,1767228631767,-300.0,0.00014516,2]
[400254324,1767228631776,-600.0,0.00014574,2]
[400254325,1767228631785,-355.32706604,0.00014574,2]
[400254326,1767228631795,-354.35076502,0.00014574,2]
[400254327,1767228631804,-999.0,0.00014609,3]
[400254328,1767228631813,-300.0,0.00014652,2]
[400254329,1767228631823,-1600.0,0.00014653,2]
[400254330,1767228631832,-200.0,0.00014672,2]
[400254331,1767228631843,-167.63,0.0001503,2]
[400254332,1767228631852,-1066.36737358,0.00015188,2]
[400254333,1767228631862,-167.21651289,0.00015188,2]
[400254334,1767228631872,-151.0,0.00015205,2]
[400254335,1767228631882,-190.38403827,0.00015207,2]
[400254336,1767228631891,-175.5005471,0.00015207,2]
[400254337,1767228631901,-340.32386842,0.00015207,2]
[400254338,1767228631910,-394.90652473,0.00015207,2]
[400254339,1767228631920,-10249.26716327,0.00015208,2]
[400254340,1767228631938,-26185.12026349,0.00015208,2]
[400254341,1767228631960,-653.4,0.00015208,2]
[400254343,1767228631977,-504.23486966,0.00015208,2]
[400254344,1767228631990,-1606.4284496,0.00015208,2]
[400254355,1767228637664,-150.0,0.00015006,2]
[400254356,1767228637674,-10169.3334292,0.00015208,2]
[400254357,1767228637686,-7893.75635904,0.00015208,2]
[400254358,1767228637698,-3987.72694341,0.00015208,2]
[400254359,1767228637710,-1193.8,0.00015208,2]
[400254360,1767228637722,-1295.24488642,0.00015208,2]
[400254361,1767228637734,-2054.59868982,0.00015208,2]
[400254362,1767228637746,-425.1074538,0.00015208,2]
[400254363,1767228637758,-22907.5315,0.00015208,2]
[400254364,1767228637775,-3854.05864599,0.00015208,2]
[400254365,1767228637788,-1064.40417485,0.00015208,2]
[400254366,1767228637828,-6424.85942953,0.00015208,2]
[400254547,1767228639775,-518.41009963,0.00015208,2]
[400254549,1767228639787,-1711.20790717,0.00015208,2]
[400254552,1767228639800,-617.05038178,0.00015208,2]
[400254554,1767228639815,-7938.34899041,0.00015208,2]
[400254556,1767228639827,-418.54789703,0.00015208,2]
[400254559,1767228639838,-270.00005,0.00015208,2]
[400254561,1767228639850,-336.3733244,0.00015208,2]
[400254563,1767228639861,-19311.72427912,0.00015208,2]
[400254565,1767228639873,-13473.14504517,0.00015208,2]
[400254568,1767228639884,-4227.19490143,0.00015208,2]
[400254571,1767228639911,-33514.33954633,0.00015208,2]
[400254574,1767228639927,-12078.2119722,0.00015208,2]
[400254576,1767228639939,-3864.10583401,0.00015208,2]
[400254579,1767228639951,-601.50114901,0.00015208,2]
[400254877,1767228643381,-1294.93495063,0.00015208,2]
[400254883,1767228645692,-410.53798005,0.00015188,2]
[400254884,1767228645702,-20.89301995,0.00015208,2]
[400254885,1767228645745,-4165.21187301,0.00015208,2]
[400254886,1767228646061,-1832.60528,0.00015208,2]
[400254889,1767228661535,500.0,0.00043165,120]
[400254890,1767228663721,500.0,0.00043165,30]
[400254891,1767228899655,273.85803965,0.0003013,120]
[400254893,1767228921950,500.0,0.00043165,120]
[400254894,1767228922177,500.0,0.00043165,120]
[400254895,1767228922427,500.0,0.00043165,120]
[400254896,1767228922706,500.0,0.00043165,120]
[400254897,1767228922945,259.50259944,0.00043165,120]
[400254898,1767228962699,500.0,0.00043165,120]
[400254899,1767229116043,500.0,0.00043165,120]
[400254900,1767229116266,500.0,0.00043165,120]
[400254901,1767229116505,500.0,0.00043165,120]
[400254902,1767229116765,501.4,0.00043165,120]
[400254903,1767229262188,500.0,0.0004317,120]
[400254904,1767229406173,734.56382815,0.0004317,120]
[400254905,1767229453600,151.0,0.0004317,50]
[400254906,1767229529006,151.0,0.0004317,50]
[400254907,1767229529288,151.0,0.0004317,50]
[400254908,1767229566014,500.0,0.0004317,120]
[400254909,1767229576482,151.0,0.0004317,50]
[400254916,1767229680328,500.0,0.0004317,30]
[400254918,1767229715231,151.0,0.0004317,50]
[400254919,1767229723316,500.0,0.0004317,30]
[400254925,1767229762970,500.0,0.0004317,30]
[400254927,1767229782891,500.0,0.0004317,30]
[400254931,1767229831812,-195.09263476,0.00013599,2]
[400254932,1767229831822,-94.0557955,0.00013699,2]
[400254933,1767229831835,-905.9442045,0.00013699,2]
[400254934,1767229831845,-166.66,0.0001384,2]
[400254935,1767229831855,-157.65,0.00013969,2]
[400254936,1767229831865,-166.66,0.00014132,2]
[400254937,1767229831875,-311.94,0.00014177,2]
[400254938,1767229831884,-200.0,0.00014268,2]
[400254939,1767229831893,-259.56234492,0.00014307,2]
[400254940,1767229831905,-887.20765508,0.00014307,2]
[400254941,1767229831915,-195.09263474,0.00014309,2]
[400254942,1767229831925,-500.0,0.00014329,2]
[400254943,1767229831935,-166.66,0.00014423,2]
[400254944,1767229831945,-166.66,0.00014715,2]
[400254945,1767229831954,-497.99525002,0.00014767,2]
[400254946,1767229831967,-4.00474998,0.00014767,2]
[400254947,1767229831976,-195.0,0.00014959,2]
[400254948,1767229831987,-195.0,0.00014959,2]
[400254949,1767229831997,-195.0,0.00014959,2]
[400254950,1767229832007,-166.66,0.00015006,2]
[400254951,1767229832017,-500.0,0.00015014,2]
[400254952,1767229832027,-300.0,0.00015017,2]
[400254954,1767229832036,-300.0,0.00015017,2]
[400254957,1767229832049,-379.51289272,0.00015018,2]
[400254959,1767229832059,-195.09263474,0.00015018,2]
[400254961,1767229832069,-1113.60077388,0.00015018,2]
[400254963,1767229832080,-273.6919867,0.00015018,2]
[400254965,1767229832089,-1000.0,0.00015061,2]
[400254967,1767229832099,-500.0,0.00015066,2]
[400254968,1767229832109,-500.0,0.00015066,2]
[400254969,1767229832120,-500.0,0.00015066,2]
[400254970,1767229832129,-500.0,0.00015066,2]
[400254971,1767229832139,-500.0,0.00015066,2]
[400254972,1767229832150,-500.0,0.00015066,2]
[400254973,1767229832160,-447.14025994,0.00015066,2]
[400254974,1767229832170,-500.0,0.00015066,2]
[400254975,1767229832179,-500.0,0.00015066,2]
[400254976,1767229832189,-300.0,0.00015067,2]
[400254977,1767229832199,-600.0,0.00015068,2]
[400254978,1767229832209,-193.0,0.00015068,2]
[400254979,1767229832219,-300.0,0.00015068,2]
[400254980,1767229832228,-2015.887225,0.00015068,2]
[400254981,1767229832238,-151.0,0.00015094,2]
[400254982,1767229832251,-284.00636618,0.00015096,2]
[400254983,1767229832261,-154413.36107421,0.00015097,2]
[400254984,1767229832274,-1431.68654969,0.00015097,2]
[400254985,1767229832290,-3041.31296243,0.00015097,2]
[400254986,1767229832302,-341.348914,0.00015097,2]
[400254987,1767229832316,-7048.88292609,0.00015097,2]
[400254988,1767229832328,-15065.18679341,0.00015097,2]
[400254989,1767229832949,151.0,0.0004317,50]
[400254991,1767229837864,-513.46651266,0.00015097,2]
[400254992,1767229837875,-1343.07308045,0.00015097,2]
[400254993,1767229837918,-403.082,0.00015097,2]
[400254994,1767229837930,-310.4129204,0.00015097,2]
[400254995,1767229837972,-95012.00257991,0.00015097,2]
[400254996,1767229837989,-1316.2203478,0.00015097,2]
[400255157,1767229839882,-5381.08095703,0.00015097,2]
[400255163,1767229839938,-439.48,0.00015097,2]
[400255164,1767229839949,-289.45978045,0.00015097,2]
[400255417,1767229842735,430.02,0.0004317,30]
[400255505,1767229843541,-940.372799,0.00015097,2]
[400255542,1767229844340,-999.0,0.00015097,2]
[400255543,1767229844417,-1298.48324577,0.00015097,2]
[400255544,1767229844429,-324.97946918,0.00015097,2]
[400255545,1767229844451,-595534.53237357,0.00015097,2]
[400255546,1767229844463,-70066.75372414,0.00015097,2]
[400255547,1767229845886,-44485.82098981,0.00015097,2]
[400255548,1767229845896,-211.27124109,0.00015118,2]
[400255549,1767229845906,-2400.34,0.00015196,2]
[400255550,1767229845916,-162.475,0.00015196,2]
[400255551,1767229845927,-11948.9334346,0.00015197,2]
[400255552,1767229845938,-199248.1940807,0.00015197,2]
[400255553,1767229845947,-2953.51653998,0.00015197,2]
[400255554,1767229845959,-115.03476342,0.00015197,2]
[400255555,1767229845969,-4884.96523658,0.00015197,2]
[400255556,1767229846048,-925.35892037,0.00015197,2]
[400255557,1767229846157,-7195.2887203,0.00015197,2]
[400255558,1767229862346,500.0,0.0004317,120]
[400255559,1767229880597,151.0,0.0004317,50]
[400255560,1767229883040,151.0,0.0004317,50]
[400255564,1767229928337,1000.0,0.0004317,120]
[400255565,1767229929052,500.0,0.0004317,120]
[400255566,1767229931274,500.0,0.0004317,120]
[400255570,1767229946585,151.0,0.0004317,50]
[400255571,1767229949338,151.0,0.0004317,30]
[400255572,1767229949794,151.0,0.0004317,30]
[400255573,1767229962558,151.0,0.0004317,50]
[400255574,1767230064147,163.852319,0.0004317,50]
[400255575,1767230064449,163.852319,0.0004317,50]
[400255576,1767230064881,163.852319,0.0004317,50]
[400255577,1767230065173,163.852319,0.0004317,50]
[400255578,1767230065474,163.852319,0.0004317,50]
[400255579,1767230065765,163.852319,0.0004317,50]
[400255580,1767230065837,151.0,0.0004317,50]
[400255581,1767230066094,163.852319,0.0004317,50]
[400255582,1767230066422,163.852319,0.0004317,50]
[400255583,1767230066738,163.852319,0.0004317,50]
[400255584,1767230067023,163.852319,0.0004317,50]
[400255585,1767230067311,163.852319,0.0004317,50]
[400255586,1767230067634,163.852319,0.0004317,50]
[400255587,1767230067927,163.852319,0.0004317,50]
[400255588,1767230068208,163.852319,0.0004317,50]
[400255589,1767230068507,163.852319,0.0004317,50]
[400255590,1767230068887,163.852319,0.0004317,50]
[400255591,1767230069552,163.852319,0.0004317,50]
[400255592,1767230069590,163.852319,0.0004317,50]
[400255593,1767230069744,163.852319,0.0004317,50]
[400255594,1767230070071,163.852315,0.0004317,50]
[400255595,1767230132363,791.28876,0.0004317,50]
[400255596,1767230132668,791.28876,0.0004317,50]
[400255597,1767230132973,791.28876,0.0004317,50]
[400255598,1767230133259,791.28876,0.0004317,50]
[400255599,1767230133536,791.28876,0.0004317,50]
[400255600,1767230133809,791.28876,0.0004317,50]
[400255601,1767230134137,791.28876,0.0004317,50]
[400255602,1767230134427,791.28876,0.0004317,50]
[400255603,1767230134707,791.28876,0.0004317,50]
[400255604,1767230134984,791.28876,0.0004317,50]
[400255605,1767230135327,791.28876,0.0004317,50]
[400255606,1767230135634,791.28876,0.0004317,50]
[400255607,1767230135930,791.28876,0.0004317,50]
[400255608,1767230136228,791.28876,0.0004317,50]
[400255609,1767230136514,791.28876,0.0004317,50]
[400255610,1767230136808,791.28876,0.0004317,50]
[400255611,1767230137204,791.28876,0.0004317,50]
[400255612,1767230137502,791.28876,0.0004317,50]
[400255613,1767230137895,791.28876,0.0004317,50]
[400255614,1767230138092,151.0,0.0004317,50]
[400255615,1767230138174,791.288758,0.0004317,50]
[400255616,1767230138374,151.0,0.0004317,50]
[400255617,1767230138662,151.0,0.0004317,50]
[400255618,1767230138937,198.5498,0.0004317,50]
[400255619,1767230163763,500.0,0.0004317,120]
[400255620,1767230174505,151.0,0.0004317,50]
[400255621,1767230174917,151.0,0.0004317,50]
[400255622,1767230227336,151.0,0.0004317,50]
[400255623,1767230231756,151.0,0.0004317,50]
[400255624,1767230232047,151.0,0.0004317,50]
[400255625,1767230242993,151.0,0.0004317,50]
[400255626,1767230243343,151.0,0.0004317,50]
[400255627,1767230243639,170.582746,0.0004317,50]
[400255628,1767230291903,151.0,0.0004317,50]
[400255629,1767230292331,151.0,0.0004317,50]
[400255630,1767230292639,151.0,0.0004317,50]
[400255631,1767230292922,151.0,0.0004317,50]
[400255632,1767230293210,151.0,0.0004317,50]
[400255633,1767230293555,151.0,0.0004317,50]
[400255634,1767230293839,151.0,0.0004317,50]
[400255635,1767230294135,151.0,0.0004317,50]
[400255636,1767230294425,151.0,0.0004317,50]
[400255637,1767230294717,151.0,0.0004317,50]
[400255638,1767230295000,151.0,0.0004317,50]
[400255639,1767230295294,151.0,0.0004317,50]
[400255640,1767230295571,151.0,0.0004317,50]
[400255641,1767230295862,151.0,0.0004317,50]
[400255642,1767230296150,151.0,0.0004317,50]
[400255643,1767230296456,151.0,0.0004317,50]
[400255644,1767230296805,290.210032,0.0004317,50]
[400255645,1767230462817,500.0,0.00043162,120]
[400255646,1767230494773,151.0,0.00043162,50]
[400255647,1767230495044,151.0,0.00043162,50]
[400255648,1767230495354,151.0,0.00043162,50]
[400255649,1767230495891,151.0,0.00043162,50]
[400255650,1767230496169,151.0,0.00043162,50]
[400255651,1767230496490,151.0,0.00043162,50]
[400255652,1767230496825,151.0,0.00043162,50]
[400255653,1767230497110,151.0,0.00043162,50]
[400255654,1767230497382,151.0,0.00043162,50]
[400255655,1767230497666,229.441131,0.00043162,50]
[400255658,1767230633981,5000.0,0.00043162,30]
[400255661,1767230762489,500.0,0.00043163,120]
[400255757,1767230854460,301.8978051,0.00043163,120]
[400255766,1767231009520,187.0,0.00043163,30]
[400255767,1767231011461,239.58752519,0.00043163,120]
[400255768,1767231013517,153.85708031,0.00043163,120]
[400255769,1767231015920,213.76100598,0.00043163,120]
[400255770,1767231016836,185.77252768,0.00043163,120]
[400255771,1767231017451,840.49698345,0.00043163,120]
[400255772,1767231020747,403.61773888,0.00043163,120]
[400255773,1767231020958,287.72287543,0.00043163,120]
[400255774,1767231021368,351.75222371,0.00043163,120]
[400255775,1767231022514,248.7793986,0.00043163,120]
[400255776,1767231022807,712.48,0.00043163,30]
[400255777,1767231027813,335.83330152,0.00043163,120]
[400255778,1767231030521,154.36997066,0.00043163,120]
[400255784,1767231032027,-501.86313919,0.00014,2]